bitfinex-derivatives/quotes_BTCF0:USTF0_20250713
["timestamp","ask_amount","ask_price","bid_price","bid_amount"]
[1752379967525,1.5571078,117810.0,117800.0,0.01731978]
[1752379967725,1.49602459,117810.0,117800.0,0.2798843]
[1752379968526,1.49600995,117810.0,117800.0,0.2798843]
[1752379969629,1.49600995,117810.0,117800.0,0.01731978]
[1752379969926,1.49600995,117810.0,117800.0,0.2798843]
[1752379974333,1.55709316,117810.0,117800.0,0.2798843]
[1752379974826,1.55709316,117810.0,117800.0,0.4496044]
[1752379975431,1.55709316,117810.0,117800.0,0.18703988]
[1752379975631,1.55709316,117810.0,117800.0,0.4496044]
[1752379975831,1.49600995,117810.0,117800.0,0.4496044]
[1752379980834,1.49600995,117810.0,117800.0,0.2798843]
[1752379982136,1.13520995,117810.0,117800.0,0.2798843]
[1752379982336,1.49600995,117810.0,117800.0,0.4496044]
[1752379982836,0.91864995,117810.0,117800.0,0.4496044]
[1752379983038,1.55675203,117810.0,117800.0,0.4496044]
[1752379984331,0.35638751,117810.0,117800.0,0.4496044]
[1752379984637,0.29528543,117810.0,117800.0,0.4496044]
[1752379984837,0.87228543,117810.0,117800.0,0.4496044]
[1752379985033,0.29528543,117810.0,117800.0,0.4496044]
[1752379985237,0.87224543,117810.0,117800.0,0.4496044]
[1752379985438,0.87224543,117810.0,117800.0,1.07296892]
[1752379985439,0.29528543,117810.0,117800.0,1.07296892]
[1752379985940,0.29528543,117810.0,117800.0,0.8104044]
[1752379991342,0.29528543,117810.0,117800.0,0.4496044]
[1752379991542,0.29528543,117810.0,117800.0,0.8104044]
[1752379995144,0.09287973,117810.0,117800.0,0.8104044]
[1752379995741,0.26258543,117810.0,117800.0,0.8104044]
[1752379996246,0.29440543,117810.0,117800.0,0.8104044]
[1752380007947,0.26258543,117810.0,117800.0,0.8104044]
[1752380008552,0.29440543,117810.0,117800.0,0.8104044]
[1752380011553,0.29440543,117810.0,117800.0,0.4496044]
[1752380011748,0.29440543,117810.0,117800.0,0.8104044]
[1752380014154,0.29440543,117810.0,117800.0,0.4496044]
[1752380014458,0.29440543,117810.0,117800.0,0.8104044]
[1752380017460,0.29440543,117810.0,117800.0,0.4496044]
[1752380017663,0.29440543,117810.0,117800.0,0.8104044]
[1752380021267,0.29440543,117810.0,117800.0,0.4496044]
[1752380021564,0.29440543,117810.0,117800.0,0.8104044]
[1752380024469,0.29440543,117810.0,117800.0,0.4496044]
[1752380024665,0.29440543,117810.0,117800.0,0.8104044]
[1752380025866,0.29440543,117810.0,117800.0,1.07296892]
[1752380032370,0.29440543,117810.0,117800.0,0.8104044]
[1752380041878,0.29440543,117810.0,117800.0,0.4496044]
[1752380042177,0.29440543,117810.0,117800.0,0.8104044]
[1752380046288,0.29440543,117810.0,117800.0,0.4496044]
[1752380046490,0.29440543,117810.0,117800.0,0.8104044]
[1752380047689,0.29440543,117810.0,117800.0,0.54783988]
[1752380047988,0.29440543,117810.0,117800.0,0.8104044]
[1752380052595,0.26948543,117810.0,117800.0,0.8104044]
[1752380054494,0.26948543,117810.0,117800.0,0.4496044]
[1752380054695,0.29355543,117810.0,117800.0,0.8104044]
[1752380058297,0.12384973,117810.0,117800.0,1.07296892]
[1752380060094,0.29355553,117810.0,117800.0,1.07296892]
[1752380060398,0.12384973,117810.0,117800.0,1.07296892]
[1752380062200,0.09202973,117810.0,117800.0,1.07296892]
[1752380062623,0.09200216,117810.0,117800.0,1.07296892]
[1752380062901,0.26170796,117810.0,117800.0,1.07296892]
[1752380064802,0.29338796,117810.0,117800.0,1.07296892]
[1752380066301,0.29338796,117810.0,117800.0,0.71216892]
[1752380066502,0.29338796,117810.0,117800.0,1.07296892]
[1752380067204,0.29338796,117810.0,117800.0,0.71216892]
[1752380067406,0.29338796,117810.0,117800.0,1.07296892]
[1752380070109,0.29338796,117810.0,117800.0,0.71216892]
[1752380070309,0.29338796,117810.0,117800.0,1.07296892]
[1752380072912,0.29338796,117810.0,117800.0,0.8104044]
[1752380075415,0.29338796,117810.0,117800.0,1.07296892]
[1752380076014,0.29338796,117810.0,117800.0,0.8104044]
[1752380101936,1.179317,117810.0,117800.0,0.00169772]
[1752380104337,1.179317,117810.0,117800.0,0.17141792]
[1752380105140,0.91675248,117810.0,117800.0,0.17141792]
[1752380106141,0.91675248,117810.0,117800.0,0.1835777]
[1752380106543,0.91675248,117810.0,117800.0,0.0138575]
[1752380106731,0.91668613,117810.0,117800.0,0.0138575]
[1752380107137,0.55588613,117810.0,117800.0,0.0138575]
[1752380107440,0.91668613,117810.0,117800.0,0.0138575]
[1752380107641,0.91668613,117810.0,117800.0,0.1835777]
[1752380108741,0.91668613,117810.0,117800.0,0.0138575]
[1752380109444,0.91668613,117810.0,117800.0,0.1835777]
[1752380109640,1.23032161,117810.0,117800.0,0.44614222]
[1752380109838,1.49288613,117810.0,117800.0,0.44614222]
[1752380110038,1.49288613,117810.0,117800.0,0.1835777]
[1752380110239,1.49288613,117810.0,117800.0,0.44614222]
[1752380110742,1.49288613,117810.0,117800.0,0.27642202]
[1752380111043,1.49288613,117810.0,117800.0,0.44614222]
[1752380112844,1.49288613,117810.0,117800.0,0.27642202]
[1752380113242,1.23032161,117810.0,117800.0,0.27642202]
[1752380113542,1.49288613,117810.0,117800.0,0.27642202]
[1752380114142,1.13208613,117810.0,117800.0,0.27642202]
[1752380114343,1.49288613,117810.0,117800.0,0.27642202]
[1752380115143,1.13208613,117810.0,117800.0,0.27642202]
[1752380115345,1.49288613,117810.0,117800.0,0.27642202]
[1752380116537,1.49288613,117810.0,117800.0,0.44614222]
[1752380122848,1.49288613,117810.0,117800.0,0.1835777]
[1752380123049,1.49288613,117810.0,117800.0,0.44614222]
[1752380127252,1.2107158,117810.0,117800.0,0.44614222]
[1752380127453,1.23032811,117810.0,117800.0,0.44614222]
[1752380127651,1.49289263,117810.0,117800.0,0.44614222]
[1752380131262,1.55399471,117810.0,117800.0,0.44614222]
[1752380133361,1.19319471,117810.0,117800.0,0.44614222]
[1752380133564,1.55399471,117810.0,117800.0,0.44614222]
[1752380138065,1.55399471,117810.0,117800.0,0.0138575]
[1752380138260,1.55399471,117810.0,117800.0,0.27642202]
[1752380138969,1.55399471,117810.0,117800.0,0.44614222]
[1752380140568,1.55399471,117810.0,117800.0,0.27642202]
[1752380140765,1.29143019,117810.0,117800.0,0.44614222]
[1752380140966,1.55399471,117810.0,117800.0,0.44614222]
[1752380141483,1.55399471,117810.0,117800.0,0.27642202]
[1752380141967,1.55399471,117810.0,117800.0,0.0138575]
[1752380142572,1.81655923,117810.0,117800.0,0.00169772]
[1752380144372,1.81682515,117810.0,117800.0,0.00169772]
[1752380151379,1.81682081,117810.0,117800.0,0.00169772]
[1752380154779,1.45602081,117810.0,117800.0,0.00169772]
[1752380154985,2.17762081,117810.0,117800.0,0.00169772]
[1752380155885,2.11651873,117810.0,117800.0,0.00169772]
[1752380156684,2.10181873,117810.0,117800.0,0.00169772]
[1752380160383,1.83925421,117810.0,117800.0,0.00169772]
[1752380163589,2.10181873,117810.0,117800.0,0.00169772]
[1752380163783,1.83925421,117810.0,117800.0,0.00169772]
[1752380163983,2.10181873,117810.0,117800.0,0.00169772]
[1752380164387,1.83925421,117810.0,117800.0,0.00169772]
[1752380165887,1.90033068,117810.0,117800.0,0.00169772]
[1752380168196,1.90021068,117810.0,117800.0,0.26426224]
[1752380168589,1.90021068,117810.0,117800.0,0.43398244]
[1752380168991,1.90021068,117810.0,117800.0,0.26426224]
[1752380171794,1.53941068,117810.0,117800.0,0.26426224]
[1752380175898,1.53941068,117810.0,117800.0,0.00169772]
[1752380179003,1.47690706,117810.0,117800.0,0.00169772]
[1752380180104,1.73947158,117810.0,117800.0,0.00169772]
[1752380181404,1.80054805,117810.0,117800.0,0.00169772]
[1752380183206,1.53798353,117810.0,117800.0,0.00169772]
[1752380185207,1.80054805,117810.0,117800.0,0.00169772]
[1752380186108,2.16134805,117810.0,117800.0,0.00169772]
[1752380189809,1.43974805,117810.0,117800.0,0.00169772]
[1752380190012,1.80054805,117810.0,117800.0,0.00169772]
[1752380191615,1.53798353,117810.0,117800.0,0.00169772]
[1752380196503,1.80054805,117810.0,117800.0,0.00169772]
[1752380203716,1.27541901,117810.0,117800.0,0.00169772]
[1752380203917,1.80054805,117810.0,117800.0,0.00169772]
[1752380205020,1.80059444,117810.0,117800.0,0.00169772]
[1752380205918,1.47695345,117810.0,117800.0,0.00169772]
[1752380207517,1.73951797,117810.0,117800.0,0.00169772]
[1752380212425,1.47695345,117810.0,117800.0,0.00169772]
[1752380215934,1.53805267,117810.0,117800.0,0.00169772]
[1752380216326,0.96197267,117810.0,117800.0,0.00169772]
[1752380216628,1.53797267,117810.0,117800.0,0.00169772]
[1752380216820,0.69940815,117810.0,117800.0,0.43398244]
[1752380217129,0.85350893,117810.0,117800.0,0.47592244]
[1752380217334,0.27750893,117810.0,117800.0,0.73848696]
[1752380217633,0.27750893,117810.0,117800.0,0.83672244]
[1752380218735,0.07612313,117810.0,117800.0,1.09928696]
[1752380218941,0.04419028,117810.0,117800.0,1.26906295]
[1752380219128,0.02012028,117810.0,117800.0,1.26906295]
[1752380220237,0.04361028,117810.0,117800.0,1.26906295]
[1752380221039,0.09248028,117810.0,117800.0,1.26906295]
[1752380221637,0.09248028,117810.0,117800.0,1.09928696]
[1752380222643,0.26218608,117810.0,117800.0,1.09928696]
[1752380223346,0.07256,117810.0,117800.0,1.09928696]
[1752380223543,0.09245782,117810.0,117800.0,1.09928696]
[1752380223844,0.04358782,117810.0,117800.0,1.09928696]
[1752380224340,0.04358782,117810.0,117800.0,0.57415792]
[1752380224545,0.04358782,117810.0,117800.0,1.09928696]
[1752380225842,0.09245782,117810.0,117800.0,1.09928696]
[1752380227549,0.04358782,117810.0,117800.0,1.09928696]
[1752380233853,0.09352782,117810.0,117800.0,1.09928696]
[1752380234458,0.26323362,117810.0,117800.0,1.09928696]
[1752380235057,0.29414362,117810.0,117800.0,1.09928696]
[1752380239658,0.29414362,117810.0,117800.0,1.1171066]
[1752380240965,0.12443782,117810.0,117800.0,1.1171066]
[1752380241359,0.29414362,117810.0,117800.0,1.1171066]
[1752380243066,0.29414362,117810.0,117800.0,0.59197756]
[1752380243267,0.29414362,117810.0,117800.0,1.1171066]
[1752380244366,0.29414362,117810.0,117800.0,0.85454208]
[1752380245261,1.18007266,117810.0,117800.0,0.01951736]
[1752380245764,0.91750814,117810.0,117800.0,0.18923766]
[1752380247262,0.91750814,117810.0,117800.0,0.45180218]
[1752380253873,1.49370814,117810.0,117800.0,0.45180218]
[1752380254174,1.49370814,117810.0,117800.0,0.47761218]
[1752380264883,1.49370814,117810.0,117800.0,0.45180218]
[1752380267392,1.13290814,117810.0,117800.0,0.45180218]
[1752380267593,1.49370814,117810.0,117800.0,0.45180218]
[1752380271998,1.49370814,117810.0,117800.0,0.18923766]
[1752380272298,1.49370814,117810.0,117800.0,0.45180218]
[1752380274403,1.13290814,117810.0,117800.0,0.45180218]
[1752380274602,1.49370814,117810.0,117800.0,0.45180218]
[1752380288915,1.23090362,117810.0,117800.0,0.47761218]
[1752380289214,0.65494362,117810.0,117800.0,0.47761218]
[1752380289410,1.23090362,117810.0,117800.0,0.47761218]
[1752380289712,0.87010362,117810.0,117800.0,0.47761218]
[1752380290014,0.29414362,117810.0,117800.0,0.47761218]
[1752380290215,0.87010362,117810.0,117800.0,0.47761218]
[1752380294013,0.87019289,117810.0,117800.0,0.47761218]
[1752380295316,0.29423289,117810.0,117800.0,0.47761218]
[1752380295521,0.87023289,117810.0,117800.0,0.7563067]
[1752380296019,0.87023289,117810.0,117800.0,0.85454218]
[1752380297421,0.29423289,117810.0,117800.0,1.43054218]
[1752380303525,0.12452709,117810.0,117800.0,1.43054218]
[1752380303924,0.12452709,117810.0,117800.0,1.6931067]
[1752380304628,0.29423289,117810.0,117800.0,1.6931067]
[1752380305119,0.26332289,117810.0,117800.0,1.6931067]
[1752380311534,0.29549289,117810.0,117800.0,1.6931067]
[1752380312431,0.29542067,117810.0,117800.0,1.6931067]
[1752380312732,0.29542067,117810.0,117800.0,1.43054218]
[1752380313934,0.12571487,117810.0,117800.0,1.6931067]
[1752380314126,0.08052,117830.0,117820.0,0.2969392]
[1752380314438,0.2501996,117830.0,117820.0,1.17744372]
[1752380314734,0.2501996,117830.0,117820.0,1.53824372]
[1752380314735,0.0714,117830.0,117820.0,1.53824372]
[1752380320441,0.02305,117830.0,117820.0,1.53824372]
[1752380321243,0.0709,117830.0,117820.0,1.53824372]
[1752380322434,0.0709,117830.0,117820.0,1.55588392]
[1752380323240,0.02305,117830.0,117820.0,1.55588392]
[1752380323942,0.2838363,117840.0,117830.0,0.2116171]
[1752380324235,0.2838363,117840.0,117830.0,0.83498162]
[1752380324436,0.2414127,117840.0,117830.0,0.83498162]
[1752380325439,0.2414127,117840.0,117830.0,1.09754614]
[1752380325640,0.2414127,117840.0,117830.0,0.83498162]
[1752380326137,0.2414127,117840.0,117830.0,0.90320267]
[1752380326435,0.09154026,117840.0,117830.0,0.90320267]
[1752380326641,0.26120296,117840.0,117830.0,0.83498162]
[1752380326840,0.26120296,117840.0,117830.0,1.09754614]
[1752380327140,0.26120296,117840.0,117830.0,0.83498162]
[1752380327840,0.09154026,117840.0,117830.0,0.83498162]
[1752380328439,0.26120296,117840.0,117830.0,1.09754614]
[1752380328640,0.29340296,117840.0,117830.0,1.09754614]
[1752380329533,0.29340296,117840.0,117830.0,0.83498162]
[1752380333348,0.12374026,117840.0,117830.0,0.83498162]
[1752380333544,0.12394026,117840.0,117830.0,0.83498162]
[1752380333847,0.29360296,117840.0,117830.0,0.83498162]
[1752380335946,0.29360296,117840.0,117830.0,0.5724171]
[1752380336143,0.29360296,117840.0,117830.0,0.83498162]
[1752380340047,0.29360296,117840.0,117830.0,0.45805162]
[1752380340645,0.29360296,117840.0,117830.0,0.81885162]
[1752380341050,0.29360296,117840.0,117830.0,0.45805162]
[1752380342052,0.29360296,117840.0,117830.0,0.47418162]
[1752380342347,0.29360296,117840.0,117830.0,0.45805162]
[1752380342544,0.55616748,117840.0,117830.0,0.43224162]
[1752380342743,0.29360296,117840.0,117830.0,0.43224162]
[1752380343044,0.29360296,117840.0,117830.0,0.45805162]
[1752380345153,0.29360296,117840.0,117830.0,0.81885162]
[1752380345446,0.29360296,117840.0,117830.0,0.5562871]
[1752380345646,0.29360296,117840.0,117830.0,0.45805162]
[1752380346857,0.29360296,117840.0,117830.0,0.81885162]
[1752380347552,0.29360296,117840.0,117830.0,0.45805162]
[1752380350156,0.29360296,117840.0,117830.0,1.09754614]
[1752380351157,0.09174026,117840.0,117830.0,1.09754614]
[1752380351349,0.04389026,117840.0,117830.0,1.09754614]
[1752380353657,0.21355296,117840.0,117830.0,1.09754614]
[1752380353858,0.25892296,117840.0,117830.0,1.09754614]
[1752380355651,0.25805592,117840.0,117830.0,1.09841614]
[1752380364361,0.08839322,117840.0,117830.0,1.09841614]
[1752380367465,0.04302322,117840.0,117830.0,1.09841614]
[1752380367659,0.01999026,117840.0,117830.0,1.09841614]
[1752380368760,0.01999026,117840.0,117830.0,1.59841614]
[1752380371065,0.002,117850.0,117840.0,0.1696627]
[1752380371271,0.002,117850.0,117840.0,2.20954174]
[1752380372971,0.002,117850.0,117840.0,2.70954174]
[1752380377578,0.002,117850.0,117840.0,2.97210626]
[1752380377984,0.002,117850.0,117840.0,2.72723735]
[1752380383185,0.02167521,117850.0,117840.0,2.72723735]
[1752380385673,0.002,117850.0,117840.0,2.72723735]
[1752380386278,0.02167482,117850.0,117840.0,2.72723735]
[1752380391990,0.02167482,117850.0,117840.0,2.98980187]
[1752380392183,0.02187482,117850.0,117840.0,2.98980187]
[1752380393080,0.2544303,117870.0,117860.0,0.1696339]
[1752380393391,0.12332387,117870.0,117860.0,2.73962804]
[1752380393793,0.12332387,117870.0,117860.0,2.74908058]
[1752380400597,0.09291387,117870.0,117860.0,2.74908058]
[1752380403391,0.09291387,117870.0,117860.0,2.02748058]
[1752380403594,0.09291387,117870.0,117860.0,2.74908058]
[1752380408100,0.26253347,117870.0,117860.0,2.74908058]
[1752380408301,0.29274347,117870.0,117860.0,2.74908058]
[1752380409300,0.12312387,117870.0,117860.0,2.74908058]
[1752380410702,0.29274347,117870.0,117860.0,2.74908058]
[1752380410903,0.29294347,117870.0,117860.0,2.70667308]
[1752380411901,0.12332387,117870.0,117860.0,2.70667308]
[1752380415501,0.12332387,117870.0,117860.0,2.34587308]
[1752380416492,0.29294347,117870.0,117860.0,2.34587308]
[1752380426605,0.55550799,117870.0,117860.0,0.58229184]
[1752380426804,0.55550799,117870.0,117860.0,0.44165106]
[1752380427309,0.55550799,117870.0,117860.0,0.44165096]
[1752380427810,0.72519599,117870.0,117860.0,0.44165096]
[1752380428611,0.55550799,117870.0,117860.0,0.44165096]
[1752380430313,0.55550799,117870.0,117860.0,0.17908644]
[1752380430611,0.55550799,117870.0,117860.0,0.44165096]
[1752380431511,0.29294347,117870.0,117860.0,0.44165096]
[1752380431714,0.55550799,117870.0,117860.0,0.44165096]
[1752380433214,0.29294347,117870.0,117860.0,0.44165096]
[1752380436611,0.87002347,117870.0,117860.0,0.44165096]
[1752380440716,0.86980476,117870.0,117860.0,0.44165096]
[1752380441113,0.29272476,117870.0,117860.0,0.44165096]
[1752380441311,0.86988476,117870.0,117860.0,0.44165096]
[1752380442520,0.86988476,117870.0,117860.0,0.17908644]
[1752380442817,0.86988476,117870.0,117860.0,0.80245096]
[1752380446721,0.86988476,117870.0,117860.0,0.44165096]
[1752380447422,0.8504196,117870.0,117860.0,0.44165096]
[1752380447618,0.86988584,117870.0,117860.0,0.44165096]
[1752380450224,0.86988584,117870.0,117860.0,0.80245096]
[1752380450427,0.86988584,117870.0,117860.0,0.44165096]
[1752380453438,1.13245036,117870.0,117860.0,0.44165096]
[1752380456631,1.13247479,117870.0,117860.0,0.44165096]
[1752380457125,0.86991027,117870.0,117860.0,0.44165096]
[1752380457326,1.13247479,117870.0,117860.0,0.44165096]
[1752380460231,0.86991027,117870.0,117860.0,0.44165096]
[1752380462633,0.86991027,117870.0,117860.0,0.17908644]
[1752380462934,0.86991027,117870.0,117860.0,0.44165096]
[1752380464126,0.29275027,117870.0,117860.0,0.44165096]
[1752380464431,0.86963027,117870.0,117860.0,0.44165096]
[1752380464826,0.86963027,117870.0,117860.0,0.17908644]
[1752380465032,0.86963027,117870.0,117860.0,0.44165096]
[1752380465232,0.86963027,117870.0,117860.0,0.80245096]
[1752380465733,0.86963027,117870.0,117860.0,0.44165096]
[1752380465932,0.86963027,117870.0,117860.0,0.80245096]
[1752380466535,0.86963027,117870.0,117860.0,0.44165096]
[1752380466833,0.86963027,117870.0,117860.0,0.53988644]
[1752380467030,0.86963027,117870.0,117860.0,0.80245096]
[1752380467730,0.29275027,117870.0,117860.0,0.80245096]
[1752380467931,0.86963027,117870.0,117860.0,0.80245096]
[1752380469236,0.29275027,117870.0,117860.0,0.80245096]
[1752380469436,0.86959027,117870.0,117860.0,0.80245096]
[1752380469633,0.12313067,117870.0,117860.0,1.06501548]
[1752380469936,0.29275017,117870.0,117860.0,1.06501548]
[1752380470132,0.29275017,117870.0,117860.0,0.80245096]
[1752380473339,0.29272939,117870.0,117860.0,0.80245096]
[1752380477643,0.12310989,117870.0,117860.0,1.06501548]
[1752380477941,0.09289989,117870.0,117860.0,1.08280355]
[1752380478138,0.01966989,117870.0,117860.0,1.08280355]
[1752380479947,0.09130989,117870.0,117860.0,1.08280355]
[1752380481446,0.01966989,117870.0,117860.0,1.08280355]
[1752380482146,0.01966989,117870.0,117860.0,1.58280355]
[1752380485350,0.01966989,117870.0,117860.0,1.75249155]
[1752380489760,0.01966989,117870.0,117860.0,1.58280355]
[1752380496360,0.09121989,117870.0,117860.0,1.58280355]
[1752380496566,0.12206989,117870.0,117860.0,1.58280355]
[1752380497067,0.09121989,117870.0,117860.0,1.58280355]
[1752380500272,0.01966989,117870.0,117860.0,1.58280355]
[1752380502574,0.08990989,117870.0,117860.0,1.58280355]
[1752380504281,0.12075989,117870.0,117860.0,1.58280355]
[1752380504587,0.29037939,117870.0,117860.0,1.32023903]
[1752380504777,0.29037939,117870.0,117860.0,0.50945254]
[1752380504778,0.81550843,117870.0,117860.0,0.50945254]
[1752380505083,0.55294391,117870.0,117860.0,0.94165096]
[1752380505280,0.55294391,117870.0,117860.0,0.27201706]
[1752380505677,0.91374391,117870.0,117860.0,0.27201706]
[1752380506077,0.91374391,117870.0,117860.0,0.44165096]
[1752380509187,0.55294391,117870.0,117860.0,0.44165096]
[1752380511087,0.29037939,117870.0,117860.0,0.44165096]
[1752380513093,0.55294391,117870.0,117860.0,0.44165096]
[1752380516993,0.29037939,117870.0,117860.0,0.44165096]
[1752380517291,0.55294391,117870.0,117860.0,0.44165096]
[1752380518293,0.29037939,117870.0,117860.0,0.44165096]
[1752380518494,0.29037939,117870.0,117860.0,0.80245096]
[1752380518690,0.29037939,117870.0,117860.0,1.06501548]
[1752380518894,0.29037939,117870.0,117860.0,0.80245096]
[1752380519198,0.29037939,117870.0,117860.0,0.44165096]
[1752380520298,0.29037939,117870.0,117860.0,0.80245096]
[1752380520499,0.29037939,117870.0,117860.0,0.44165096]
[1752380521602,0.29037939,117870.0,117860.0,0.80245096]
[1752380522697,0.29037939,117870.0,117860.0,0.44165096]
[1752380522902,0.29037939,117870.0,117860.0,0.80245096]
[1752380523298,0.29037939,117870.0,117860.0,0.44165096]
[1752380523597,0.29037939,117870.0,117860.0,0.80245096]
[1752380527196,0.29037939,117870.0,117860.0,0.44165096]
[1752380528104,0.29037939,117870.0,117860.0,0.80245096]
[1752380529106,0.12075989,117870.0,117860.0,1.06501548]
[1752380531009,0.29037939,117870.0,117860.0,1.06501548]
[1752380531712,0.29037939,117870.0,117860.0,0.80245096]
[1752380531913,0.29037939,117870.0,117860.0,0.44165096]
[1752380532213,0.29037939,117870.0,117860.0,0.80245096]
[1752380532401,0.29037939,117870.0,117860.0,0.44165096]
[1752380533006,0.29037939,117870.0,117860.0,0.80245096]
[1752380535008,0.29037939,117870.0,117860.0,0.44165096]
[1752380540018,0.29037939,117870.0,117860.0,0.80245096]
[1752380544420,0.29037939,117870.0,117860.0,0.44165096]
[1752380545115,0.29037939,117870.0,117860.0,0.80245096]
[1752380545418,0.29037939,117870.0,117860.0,0.44165096]
[1752380545619,0.29037939,117870.0,117860.0,0.80245096]
[1752380546018,0.29037939,117870.0,117860.0,0.44165096]
[1752380546620,0.29037939,117870.0,117860.0,0.80245096]
[1752380547818,0.29037939,117870.0,117860.0,0.44165096]
[1752380549023,0.29037939,117870.0,117860.0,0.80245096]
[1752380549212,0.29037939,117870.0,117860.0,0.44165096]
[1752380549516,0.29037939,117870.0,117860.0,0.80245096]
[1752380550020,0.29037939,117870.0,117860.0,0.44165096]
[1752380550518,0.29037939,117870.0,117860.0,0.80245096]
[1752380551822,0.29037939,117870.0,117860.0,0.44165096]
[1752380552021,0.29037939,117870.0,117860.0,0.80245096]
[1752380554527,0.2709095,117870.0,117860.0,0.80245096]
[1752380554823,0.29078948,117870.0,117860.0,0.80245096]
[1752380556624,0.29078948,117870.0,117860.0,0.44165096]
[1752380560221,0.29078948,117870.0,117860.0,0.80245096]
[1752380560621,0.29078948,117870.0,117860.0,0.44165096]
[1752380564637,0.29078948,117870.0,117860.0,0.80245096]
[1752380565438,0.29078948,117870.0,117860.0,0.44165096]
[1752380565638,0.29078948,117870.0,117860.0,0.80245096]
[1752380568338,0.29078948,117870.0,117860.0,0.44165096]
[1752380568536,0.29078948,117870.0,117860.0,0.80245096]
[1752380568738,0.29078985,117870.0,117860.0,0.80245096]
[1752380569041,0.29078985,117870.0,117860.0,0.44165096]
[1752380569236,0.29078985,117870.0,117860.0,0.80245096]
[1752380571139,0.29078985,117870.0,117860.0,0.44165096]
[1752380571339,0.29078985,117870.0,117860.0,0.80245096]
[1752380571538,0.29078985,117870.0,117860.0,0.44165096]
[1752380571941,0.29078985,117870.0,117860.0,0.80245096]
[1752380575440,0.29078985,117870.0,117860.0,0.44165096]
[1752380575639,0.29078985,117870.0,117860.0,0.80245096]
[1752380578245,0.29078985,117870.0,117860.0,0.44165096]
[1752380578436,0.29078985,117870.0,117860.0,0.80245096]
[1752380580347,0.12117035,117870.0,117860.0,1.06501548]
[1752380580840,0.02008035,117870.0,117860.0,1.06501548]
[1752380581144,0.02008192,117870.0,117860.0,1.06501548]
[1752380587648,0.02008192,117870.0,117860.0,1.56501548]
[1752380591555,0.02008192,117870.0,117860.0,1.92581548]
[1752380595558,0.02008192,117870.0,117860.0,1.20421548]
[1752380595760,0.02008192,117870.0,117860.0,1.92581548]
[1752380617275,0.09080192,117870.0,117860.0,1.92581548]
[1752380621371,0.12206192,117870.0,117860.0,1.92581548]
[1752380622075,0.12206192,117870.0,117860.0,1.42581548]
[1752380622775,0.12199708,117870.0,117860.0,1.42581548]
[1752380624076,0.12199708,117870.0,117860.0,0.90068644]
[1752380624280,0.29161658,117870.0,117860.0,1.73985096]
[1752380624476,0.12199708,117870.0,117860.0,1.73985096]
[1752380625677,0.12199708,117870.0,117860.0,1.37905096]
[1752380630483,0.29161668,117870.0,117860.0,1.37905096]
[1752380634492,0.12199708,117870.0,117860.0,1.37905096]
[1752380635194,0.29161668,117870.0,117860.0,1.37905096]
[1752380639594,0.29161668,117870.0,117860.0,1.11648644]
[1752380639792,0.46130468,117870.0,117860.0,0.53988644]
[1752380639994,0.271614,117860.0,117850.0,0.0002]
[1752380640199,0.2009084,117850.0,117840.0,0.22299343]
[1752380640392,0.55421,117850.0,117840.0,0.48535795]
[1752380640793,1.13097,117850.0,117840.0,0.48535795]
[1752380641997,0.29164548,117850.0,117840.0,0.48535795]
[1752380643499,0.35837129,117850.0,117840.0,0.48535795]
[1752380645498,0.93525129,117850.0,117840.0,0.48535795]
[1752380649401,0.93525129,117850.0,117840.0,0.22279343]
[1752380649702,0.93525129,117850.0,117840.0,0.48535795]
[1752380651700,0.93525129,117850.0,117840.0,0.22279343]
[1752380651902,0.93525129,117850.0,117840.0,0.48535795]
[1752380657197,0.93535664,117850.0,117840.0,0.48535795]
[1752380663610,0.93535664,117850.0,117840.0,0.22279343]
[1752380664101,0.93535664,117850.0,117840.0,0.48535795]
[1752380665505,1.19792116,117850.0,117840.0,0.48535795]
[1752380666505,0.93535664,117850.0,117840.0,0.48535795]
[1752380667212,0.35847664,117850.0,117840.0,0.48535795]
[1752380667508,0.93503664,117850.0,117840.0,0.48535795]
[1752380667809,0.35847664,117850.0,117840.0,0.48535795]
[1752380668010,0.93495664,117850.0,117840.0,0.48535795]
[1752380668511,1.29575664,117850.0,117840.0,0.48535795]
[1752380668810,1.29575664,117850.0,117840.0,0.22279343]
[1752380669112,1.55832116,117850.0,117840.0,0.48535795]
[1752380669911,1.29575664,117850.0,117840.0,0.48535795]
[1752380670106,0.93495664,117850.0,117840.0,0.48535795]
[1752380670410,1.29575664,117850.0,117840.0,0.48535795]
[1752380673911,0.71927664,117850.0,117840.0,0.48535795]
[1752380674211,1.29563664,117850.0,117840.0,0.48535795]
[1752380675011,0.93479664,117850.0,117840.0,0.48535795]
[1752380683218,0.91487421,117850.0,117840.0,0.48535795]
[1752380683415,0.9348249,117850.0,117840.0,0.48535795]
[1752380688024,1.2956249,117850.0,117840.0,0.48535795]
[1752380690221,1.29562784,117850.0,117840.0,0.48535795]
[1752380690623,0.93482784,117850.0,117840.0,0.48535795]
[1752380697130,1.29562784,117850.0,117840.0,0.48535795]
[1752380698332,1.29562784,117850.0,117840.0,0.22279343]
[1752380698533,1.55819236,117850.0,117840.0,0.01071593]
[1752380700929,1.55819236,117850.0,117840.0,0.00169714]
[1752380701240,0.2718627,117840.0,117830.0,0.1698771]
[1752380701532,0.91538085,117840.0,117830.0,0.1696771]
[1752380701736,0.91538085,117840.0,117830.0,0.43224162]
[1752380702634,0.91538085,117840.0,117830.0,0.44099654]
[1752380703223,0.91538085,117840.0,117830.0,0.27131944]
[1752380703932,0.91538085,117840.0,117830.0,0.44099654]
[1752380707937,0.91538085,117840.0,117830.0,0.00875492]
[1752380708238,0.91538085,117840.0,117830.0,0.43224162]
[1752380710741,0.91538085,117840.0,117830.0,0.4410661]
[1752380714248,0.91538085,117840.0,117830.0,0.271389]
[1752380714738,0.91538085,117840.0,117830.0,0.00882448]
[1752380714944,0.2019271,117830.0,117820.0,0.51728882]
[1752380715144,0.86858073,117830.0,117820.0,0.51708882]
[1752380718650,0.86858073,117830.0,117820.0,0.51980882]
[1752380718848,0.86858073,117830.0,117820.0,0.52882473]
[1752380721652,0.29234073,117830.0,117820.0,0.52882473]
[1752380721851,0.26009073,117830.0,117820.0,0.89132473]
[1752380722053,0.09041363,117830.0,117820.0,1.73012925]
[1752380722256,0.02015363,117830.0,117820.0,1.46756473]
[1752380723057,0.04361363,117830.0,117820.0,1.46756473]
[1752380723556,0.09041363,117830.0,117820.0,1.46756473]
[1752380734063,0.09041363,117830.0,117820.0,1.73012925]
[1752380735061,0.02015363,117830.0,117820.0,1.73012925]
[1752380737967,0.09341363,117830.0,117820.0,1.46756473]
[1752380741668,0.09341363,117830.0,117820.0,1.73012925]
[1752380744670,0.09341363,117830.0,117820.0,1.46756473]
[1752380748473,0.09341363,117830.0,117820.0,1.10676473]
[1752380748674,0.09341363,117830.0,117820.0,1.46756473]
[1752380757679,0.29323073,117830.0,117820.0,1.46756473]
[1752380759480,0.29323073,117830.0,117820.0,1.46586473]
[1752380760480,0.29323073,117830.0,117820.0,1.46756473]
[1752380760682,0.12355363,117830.0,117820.0,1.46756473]
[1752380761176,0.29323073,117830.0,117820.0,1.46756473]
[1752380764986,0.12355363,117830.0,117820.0,1.46756473]
[1752380766883,0.29323073,117830.0,117820.0,1.46756473]